bitfinex-derivatives/quotes_BTCF0:USTF0_20250716
["timestamp","ask_amount","ask_price","bid_price","bid_amount"]
[1752704323324,1.156842,119560.0,119550.0,0.06584112]
[1752704323826,1.156842,119560.0,119550.0,0.00568]
[1752704324221,0.87979155,119560.0,119550.0,0.00568]
[1752704325820,0.88279155,119560.0,119550.0,0.00568]
[1752704326031,0.89111692,119560.0,119550.0,0.00568]
[1752704329132,1.16816737,119560.0,119550.0,0.00568]
[1752704330036,0.1672351,119530.0,119520.0,0.33877526]
[1752704330334,1.03016555,119530.0,119520.0,0.16379556]
[1752704331134,1.03016555,119530.0,119520.0,0.11140112]
[1752704331838,1.19749355,119530.0,119520.0,0.06016112]
[1752704332337,1.19749355,119530.0,119520.0,0.06116112]
[1752704332841,1.19749355,119530.0,119520.0,0.10789112]
[1752704333036,1.26536183,119530.0,119520.0,0.10789112]
[1752704333339,1.26536183,119530.0,119520.0,0.11240112]
[1752704333527,1.26536183,119530.0,119520.0,0.05224]
[1752704334139,1.26536183,119530.0,119520.0,0.11240112]
[1752704334339,1.26536183,119530.0,119520.0,0.05224]
[1752704334830,1.26536183,119530.0,119520.0,0.11240112]
[1752704337134,1.26536183,119530.0,119520.0,0.05224]
[1752704337933,1.26536183,119530.0,119520.0,0.001]
[1752704338545,0.44429955,119520.0,119510.0,0.06016112]
[1752704338736,0.46104563,119520.0,119510.0,0.06016112]
[1752704339040,0.90544008,119520.0,119510.0,0.06016112]
[1752704339238,0.90544008,119520.0,119500.0,0.12971899]
[1752704339443,1.03019355,119510.0,119500.0,0.12971899]
[1752704340143,1.03019355,119510.0,119500.0,0.16379899]
[1752704340545,1.03019355,119510.0,119500.0,0.16779899]
[1752704342248,1.03024355,119510.0,119500.0,0.10763787]
[1752704342946,0.7531931,119510.0,119500.0,0.27491487]
[1752704343248,5e-05,119510.0,119500.0,0.61212644]
[1752704343438,0.58593,119510.0,119500.0,0.61212644]
[1752704343837,0.753193,119510.0,119500.0,0.61212644]
[1752704344038,0.58593,119510.0,119500.0,0.61212644]
[1752704344340,0.753193,119510.0,119500.0,0.61212644]
[1752704344646,1.03024345,119510.0,119500.0,0.33507599]
[1752704345139,0.753193,119510.0,119500.0,0.33477942]
[1752704345343,0.753193,119510.0,119500.0,0.61182987]
[1752704345344,0.753153,119510.0,119500.0,0.61182987]
[1752704346140,0.58589,119510.0,119500.0,0.61182987]
[1752704346345,0.58589,119510.0,119500.0,0.33477942]
[1752704346549,0.58589,119510.0,119500.0,0.61182987]
[1752704346847,0.58589,119510.0,119500.0,0.55196532]
[1752704347047,0.753153,119510.0,119500.0,0.55196532]
[1752704347248,0.753153,119510.0,119500.0,0.61184183]
[1752704348149,0.58589,119510.0,119500.0,0.61184183]
[1752704348349,0.753113,119510.0,119500.0,0.55196532]
[1752704350449,0.58585,119510.0,119500.0,0.55196532]
[1752704350657,0.753113,119510.0,119500.0,0.55196532]
[1752704351648,0.753113,119510.0,119500.0,0.27491487]
[1752704351849,0.753113,119510.0,119500.0,0.55196532]
[1752704353548,0.753113,119510.0,119500.0,0.65707975]
[1752704355954,0.753113,119510.0,119500.0,0.55196532]
[1752704357262,0.753113,119510.0,119500.0,0.65707975]
[1752704361955,0.753113,119510.0,119500.0,0.3800293]
[1752704362153,1.03016345,119510.0,119500.0,0.3459493]
[1752704362354,1.03016345,119510.0,119500.0,0.24083487]
[1752704362562,1.03016345,119510.0,119500.0,0.07355787]
[1752704362761,1.03016345,119510.0,119500.0,0.24083487]
[1752704362959,1.03016345,119510.0,119500.0,0.07355787]
[1752704363152,1.03016345,119510.0,119500.0,0.14877841]
[1752704363459,1.03016345,119510.0,119500.0,0.07355787]
[1752704364151,1.03016345,119510.0,119500.0,0.24083487]
[1752704364961,1.03016345,119510.0,119500.0,0.07355787]
[1752704365155,1.03016345,119510.0,119500.0,0.09753841]
[1752704368265,1.19752345,119510.0,119500.0,0.06419128]
[1752704368961,0.920473,119510.0,119500.0,0.06419128]
[1752704369265,1.19752345,119510.0,119500.0,0.06419128]
[1752704373157,0.920473,119510.0,119500.0,0.06419128]
[1752704373359,1.19752345,119510.0,119500.0,0.06419128]
[1752704378672,1.03016345,119510.0,119500.0,0.06419128]
[1752704379575,0.753113,119510.0,119500.0,0.06419128]
[1752704379872,1.03016345,119510.0,119500.0,0.06419128]
[1752704380873,1.03016345,119510.0,119500.0,0.11245128]
[1752704381473,0.753113,119510.0,119500.0,0.11245128]
[1752704381775,1.03016345,119510.0,119500.0,0.11245128]
[1752704381966,1.03016345,119510.0,119500.0,0.06412382]
[1752704382366,1.03016345,119510.0,119500.0,0.004]
[1752704382774,1.03016345,119510.0,119500.0,0.06412381]
[1752704383173,1.03016345,119510.0,119500.0,0.11238381]
[1752704384076,1.19752345,119510.0,119500.0,0.06082436]
[1752704387176,0.167277,119500.0,119490.0,0.05192234]
[1752704387382,0.167305,119480.0,119470.0,0.10511443]
[1752704387567,0.167319,119470.0,119460.0,0.08716]
[1752704387772,0.44436945,119470.0,119460.0,0.08716]
[1752704388775,0.44436945,119470.0,119460.0,0.08816]
[1752704389083,0.45274157,119470.0,119460.0,0.08816]
[1752704389784,0.44436945,119470.0,119460.0,0.08816]
[1752704390183,0.44436945,119470.0,119460.0,0.255493]
[1752704390684,0.167319,119470.0,119460.0,0.255493]
[1752704391075,0.167319,119470.0,119460.0,0.08816]
[1752704391471,1.04671828,119480.0,119460.0,0.35423135]
[1752704391472,0.30987763,119480.0,119460.0,0.35423135]
[1752704391680,0.18437853,119480.0,119470.0,0.53152945]
[1752704391981,0.76961853,119480.0,119470.0,0.53152945]
[1752704392571,0.01707353,119480.0,119470.0,0.53152945]
[1752704392784,0.60231353,119480.0,119470.0,0.53152945]
[1752704392979,0.60231353,119480.0,119470.0,0.63664388]
[1752704393179,0.76961853,119480.0,119470.0,0.63664388]
[1752704393483,0.01707353,119480.0,119470.0,0.63664388]
[1752704393684,0.01707353,119480.0,119470.0,1.07746469]
[1752704394186,0.30982346,119500.0,119490.0,0.254451]
[1752704394482,0.22617976,119500.0,119490.0,0.53150145]
[1752704394687,0.01707146,119500.0,119490.0,0.53150145]
[1752704394883,0.01707146,119500.0,119490.0,0.63661588]
[1752704395275,0.01707146,119500.0,119490.0,0.65550435]
[1752704395474,0.18434836,119500.0,119490.0,0.65550435]
[1752704395679,0.18434836,119500.0,119490.0,0.55038992]
[1752704395886,0.18434836,119500.0,119490.0,0.55138992]
[1752704396080,0.18434836,119500.0,119490.0,0.65658584]
[1752704396486,0.18434836,119500.0,119490.0,0.55438992]
[1752704396688,0.18434836,119500.0,119490.0,0.65958659]
[1752704397288,0.07135119,119500.0,119490.0,0.65958659]
[1752704397490,0.07135119,119500.0,119490.0,0.55438992]
[1752704398288,0.07135119,119500.0,119490.0,0.62112949]
[1752704398490,0.07135119,119500.0,119490.0,0.72629034]
[1752704398885,0.07135119,119500.0,119490.0,0.62112949]
[1752704399389,0.8361537,119510.0,119500.0,0.254437]
[1752704399591,5e-05,119510.0,119500.0,0.53148745]
[1752704399788,5e-05,119510.0,119500.0,0.60658473]
[1752704399991,0.8359459,119530.0,119520.0,0.201599]
[1752704400192,0.8359459,119530.0,119520.0,0.60655378]
[1752704400484,0.1672827,119540.0,119530.0,0.167235]
[1752704400689,0.7523627,119540.0,119530.0,0.60653978]
[1752704402190,0.7553627,119540.0,119530.0,0.60653978]
[1752704402990,0.7553627,119540.0,119530.0,0.32948933]
[1752704403185,0.7553627,119540.0,119530.0,0.53144545]
[1752704403591,0.7553627,119540.0,119530.0,0.254395]
[1752704403782,0.7553627,119540.0,119530.0,0.60653978]
[1752704403984,0.58813,119540.0,119530.0,0.59141702]
[1752704404594,0.755351,119540.0,119530.0,0.59141702]
[1752704404791,0.58813,119540.0,119530.0,0.53144545]
[1752704404986,0.58813,119540.0,119530.0,0.60653978]
[1752704405495,0.755351,119540.0,119530.0,0.60653978]
[1752704405996,0.58813,119540.0,119530.0,0.60653978]
[1752704407097,0.170271,119540.0,119530.0,0.60653978]
[1752704407889,0.170271,119540.0,119530.0,0.53144545]
[1752704408192,0.00305,119540.0,119530.0,0.53144545]
[1752704408387,0.00305,119540.0,119530.0,0.77385178]
[1752704408586,0.01699134,119550.0,119540.0,0.167221]
[1752704408793,5e-05,119560.0,119550.0,0.27295848]
[1752704408986,5e-05,119560.0,119550.0,0.55000893]
[1752704409190,5e-05,119560.0,119550.0,1.4867354]
[1752704409391,0.18611625,119570.0,119560.0,0.254453]
[1752704409594,0.18611625,119570.0,119560.0,0.88334992]
[1752704409794,0.18611625,119570.0,119560.0,0.53150345]
[1752704410191,0.01893725,119570.0,119560.0,0.38116524]
[1752704410391,0.18611625,119570.0,119560.0,0.65821569]
[1752704410593,0.01893725,119570.0,119560.0,0.65821569]
[1752704410994,0.01893725,119570.0,119560.0,0.59846513]
[1752704411195,0.01893725,119570.0,119560.0,0.65817746]
[1752704411396,0.01893725,119570.0,119560.0,0.93522791]
[1752704412297,0.01893725,119570.0,119560.0,0.38112701]
[1752704412506,0.01893725,119570.0,119560.0,0.93522791]
[1752704412889,0.01893725,119570.0,119560.0,0.65817746]
[1752704413093,0.01893725,119570.0,119560.0,0.59846513]
[1752704413693,0.01893725,119570.0,119560.0,0.87551558]
[1752704414295,0.02093725,119570.0,119560.0,0.87551558]
[1752704416495,0.00400277,119570.0,119560.0,0.59846513]
[1752704416697,0.00400277,119570.0,119560.0,0.87551558]
[1752704420914,0.00222411,119580.0,119570.0,0.2544391]
[1752704421111,0.00222411,119580.0,119570.0,1.13614205]
[1752704422115,0.00622411,119580.0,119570.0,1.13614205]
[1752704424913,0.00222411,119580.0,119570.0,1.13614205]
[1752704428924,0.00222411,119580.0,119570.0,1.13534205]
[1752704432425,5e-05,119580.0,119570.0,1.13534205]
[1752704433226,5e-05,119580.0,119570.0,0.8582916]
[1752704433425,5e-05,119580.0,119570.0,1.13534205]
[1752704433626,0.169495,119580.0,119570.0,0.54994205]
[1752704433825,0.00233,119580.0,119570.0,1.13658205]
[1752704434830,0.1694951,119580.0,119570.0,1.13658205]
[1752704435331,0.00233,119580.0,119570.0,1.13658205]
[1752704438431,0.172815,119580.0,119570.0,0.0659025]
[1752704438734,0.44986545,119580.0,119570.0,0.2330815]
[1752704438934,0.44986545,119580.0,119570.0,0.2718215]
[1752704440136,1.03758545,119580.0,119570.0,0.2718215]
[1752704440334,1.03758545,119580.0,119570.0,0.0659025]
[1752704440535,1.20484146,119580.0,119570.0,0.0184525]
[1752704440736,1.03758545,119580.0,119570.0,0.0184525]
[1752704441435,1.20484146,119580.0,119570.0,0.0184525]
[1752704441738,1.20784146,119580.0,119570.0,0.0184525]
[1752704442634,1.45784146,119580.0,119570.0,0.01139973]
[1752704442931,1.45784146,119580.0,119570.0,0.01134973]
[1752704443332,1.47701537,119580.0,119570.0,0.01134973]
[1752704443534,1.45784146,119580.0,119570.0,0.01134973]
[1752704443732,0.167193,119560.0,119550.0,0.31480758]
[1752704443937,0.756913,119560.0,119550.0,0.31480758]
[1752704444136,0.756913,119560.0,119550.0,0.59185803]
[1752704445642,0.756913,119560.0,119550.0,0.31480758]
[1752704448844,0.756913,119560.0,119550.0,0.59185803]
[1752704449043,0.167193,119560.0,119550.0,0.59185803]
[1752704449233,0.60902759,119570.0,119560.0,0.254503]
[1752704449537,0.77620659,119570.0,119560.0,0.53155345]
[1752704449738,0.01745369,119570.0,119560.0,0.53155345]
[1752704450043,0.60929369,119570.0,119560.0,0.53135171]
[1752704450233,0.77647269,119570.0,119560.0,0.53135171]
[1752704450742,0.77747269,119570.0,119560.0,0.53135171]
[1752704451334,0.77647269,119570.0,119560.0,0.53135171]
[1752704451533,0.77647269,119570.0,119560.0,0.36436045]
[1752704451734,0.77647269,119570.0,119560.0,0.08731]
[1752704452038,0.167193,119560.0,119550.0,0.07180148]
[1752704452243,0.44424345,119560.0,119550.0,0.06706148]
[1752704452442,0.44424345,119560.0,119550.0,0.01849148]
[1752704452639,0.167221,119540.0,119530.0,0.10407363]
[1752704452838,0.167235,119530.0,119520.0,0.07994363]
[1752704453043,0.44428545,119530.0,119520.0,0.12377363]
[1752704453244,0.44428545,119530.0,119520.0,0.04857]
[1752704453636,0.5099151,119530.0,119520.0,0.04857]
[1752704453838,0.5099151,119530.0,119520.0,0.05331]
[1752704454437,0.5099151,119530.0,119520.0,0.0558]
[1752704454638,0.5099151,119530.0,119520.0,0.07114]
[1752704454834,0.5099151,119530.0,119520.0,0.08731]
[1752704456248,0.5099151,119530.0,119520.0,0.08831]
[1752704456748,0.23286465,119530.0,119520.0,0.08831]
[1752704456944,0.5099151,119530.0,119520.0,0.08831]
[1752704457741,0.5099151,119530.0,119520.0,0.0568]
[1752704457945,0.5099151,119530.0,119520.0,0.001]
[1752704458548,0.9272431,119530.0,119520.0,0.001]
[1752704460545,0.65019265,119530.0,119520.0,0.001]
[1752704460848,0.9272431,119530.0,119520.0,0.001]
[1752704461049,0.5099151,119530.0,119520.0,0.001]
[1752704461255,1.1019551,119530.0,119520.0,0.001]
[1752704465151,0.5099151,119530.0,119520.0,0.001]
[1752704465454,1.1019151,119530.0,119520.0,0.001]
[1752704467751,1.1017951,119530.0,119520.0,0.001]
[1752704469056,1.2691231,119530.0,119520.0,0.001]
[1752704475768,1.1017951,119530.0,119520.0,0.001]
[1752704478972,0.5099151,119530.0,119520.0,0.001]
[1752704479171,1.0999951,119530.0,119520.0,0.001]
[1752704479572,0.23286465,119530.0,119520.0,0.08679]
[1752704479765,1.1011551,119530.0,119520.0,0.08679]
[1752704480069,1.1011551,119530.0,119520.0,0.001]
[1752704482685,1.1011551,119530.0,119520.0,0.04813]
[1752704483686,1.1199956,119530.0,119520.0,0.001]
[1752704484274,1.1197956,119530.0,119520.0,0.07057]
[1752704484481,0.5287556,119530.0,119520.0,0.08679]
[1752704484692,1.1007151,119530.0,119520.0,0.08679]
[1752704487187,1.1007151,119530.0,119520.0,0.001]
[1752704487188,1.11943184,119530.0,119520.0,0.001]
[1752704488592,1.11942903,119530.0,119520.0,0.001]
[1752704488979,0.84237858,119530.0,119520.0,0.001]
[1752704489186,1.11942903,119530.0,119520.0,0.001]
[1752704489781,1.1007151,119530.0,119520.0,0.04813]
[1752704489990,1.1007151,119530.0,119520.0,0.05302]
[1752704490491,1.11942591,119530.0,119520.0,0.05302]
[1752704490692,1.11942591,119530.0,119520.0,0.04813]
[1752704490892,1.1007151,119530.0,119520.0,0.001]
[1752704492192,1.37776555,119530.0,119520.0,0.001]
[1752704492386,0.1672629,119510.0,119500.0,0.11210858]
[1752704492584,1.03399335,119510.0,119500.0,0.11210858]
[1752704493099,1.03399335,119510.0,119500.0,0.06008858]
[1752704493394,1.03399335,119510.0,119500.0,0.06408858]
[1752704493588,1.03399335,119510.0,119500.0,0.004]
[1752704495693,0.167277,119500.0,119490.0,0.07897705]
[1752704495893,0.44432745,119500.0,119490.0,0.07897705]
[1752704496098,0.44432745,119500.0,119490.0,0.06008858]
[1752704496296,0.61169546,119500.0,119490.0,8e-08]
[1752704496487,0.167291,119490.0,119480.0,0.07520363]
[1752704496693,1.1346832,119490.0,119480.0,0.04673]
[1752704496895,1.1765089,119490.0,119480.0,0.04673]
[1752704497700,0.1673048,119480.0,119470.0,0.06998]
[1752704497893,0.44435525,119480.0,119470.0,0.06998]
[1752704498294,0.44435525,119480.0,119470.0,0.08569]
[1752704499188,0.44435525,119480.0,119470.0,0.06998]
[1752704499392,0.44435525,119480.0,119470.0,0.05333]
[1752704500095,0.7214057,119480.0,119470.0,0.002]
[1752704500802,0.44435525,119480.0,119470.0,0.002]
[1752704501202,0.7214057,119480.0,119470.0,0.002]
[1752704501701,0.44435525,119480.0,119470.0,0.002]
[1752704502093,1.03495525,119480.0,119470.0,0.05333]
[1752704504002,1.03495525,119480.0,119470.0,0.002]
[1752704504205,1.3120057,119480.0,119470.0,0.002]
[1752704504394,1.03495525,119480.0,119470.0,0.002]
[1752704504794,1.03495525,119480.0,119470.0,0.02915]
[1752704504995,0.44435525,119480.0,119470.0,0.08769]
[1752704505293,0.7577048,119480.0,119470.0,0.08769]
[1752704505492,0.7660219,119480.0,119470.0,0.08669]
[1752704505897,1.04307235,119480.0,119470.0,0.08669]
[1752704506098,0.1756219,119480.0,119470.0,0.08669]
[1752704506299,0.7659419,119480.0,119470.0,0.08669]
[1752704506701,1.04299235,119480.0,119470.0,0.08669]
[1752704508103,0.7659419,119480.0,119470.0,0.05469]
[1752704508299,0.45267235,119480.0,119470.0,0.08669]
[1752704508495,1.04291235,119480.0,119470.0,0.08669]
[1752704508800,0.7575448,119480.0,119470.0,0.36374045]
[1752704509002,0.22617915,119490.0,119480.0,0.08569]
[1752704509198,0.60833105,119490.0,119480.0,0.53004505]
[1752704509712,0.60833105,119490.0,119480.0,0.94742905]
[1752704509914,0.77562165,119490.0,119480.0,0.94742905]
[1752704510206,0.77562165,119490.0,119480.0,0.69742905]
[1752704510602,0.77562165,119490.0,119480.0,0.53004505]
[1752704510795,0.77562165,119490.0,119480.0,0.69742905]
[1752704511000,0.77562165,119490.0,119480.0,0.74547141]
[1752704511906,0.1672874,119500.0,119490.0,0.2529806]
[1752704512110,0.2927143,119510.0,119500.0,0.08569]
[1752704512512,0.8419359,119510.0,119500.0,0.08569]
[1752704512717,0.2508959,119510.0,119500.0,0.08569]
[1752704513008,0.8418959,119510.0,119500.0,0.57805941]
[1752704513315,0.8418959,119510.0,119500.0,0.08569]
[1752704513506,0.8458959,119510.0,119500.0,0.08669]
[1752704514408,1.17098871,119510.0,119500.0,0.08669]
[1752704516015,0.8458959,119510.0,119500.0,0.08669]
[1752704517013,0.8453759,119510.0,119500.0,0.08669]
[1752704517315,0.8450559,119510.0,119500.0,0.08669]
[1752704518417,0.8032388,119510.0,119500.0,0.2539666]
[1752704518619,0.004,119510.0,119500.0,0.99641941]
[1752704518819,0.004,119510.0,119500.0,1.07162304]
[1752704519720,0.1712626,119510.0,119500.0,0.65426304]
[1752704520022,0.1712626,119510.0,119500.0,0.2539666]
[1752704520717,0.1712626,119510.0,119500.0,0.57905941]
[1752704520921,0.49635541,119510.0,119500.0,0.08669]
[1752704523425,0.7613826,119510.0,119500.0,0.08669]
[1752704523815,0.7616626,119510.0,119500.0,0.08669]
[1752704526426,1.08675541,119510.0,119500.0,0.08669]
[1752704528022,1.08611541,119510.0,119500.0,0.08669]
[1752704528222,0.7610226,119510.0,119500.0,0.08669]
[1752704528419,1.08611541,119510.0,119500.0,0.08669]
[1752704529531,0.7610226,119510.0,119500.0,0.08669]
[1752704530028,1.08611541,119510.0,119500.0,0.04773]
[1752704530237,1.08611541,119510.0,119500.0,0.001]
[1752704530735,2.24335541,119510.0,119500.0,0.001]
[1752704535237,1.65359541,119510.0,119500.0,0.001]
[1752704535534,2.24271541,119510.0,119500.0,0.001]
[1752704535740,1.9176226,119510.0,119500.0,0.001]
[1752704536038,2.24271541,119510.0,119500.0,0.001]
[1752704536541,1.65359541,119510.0,119500.0,0.001]
[1752704536735,2.24275541,119510.0,119500.0,0.001]
[1752704539444,0.1673003,119480.0,119470.0,0.08584]
[1752704539644,1.08119311,119480.0,119470.0,0.08584]
[1752704539844,1.08119311,119480.0,119470.0,0.14587853]
[1752704540441,1.08119311,119480.0,119470.0,0.08584]
[1752704540642,1.08119311,119480.0,119470.0,0.14687853]
[1752704541245,0.7561003,119480.0,119470.0,0.14687853]
[1752704541547,1.0897427,119480.0,119470.0,0.08684]
[1752704541745,1.0897427,119480.0,119470.0,0.11355853]
[1752704541950,1.0897427,119480.0,119470.0,0.05352]
[1752704542144,1.0897427,119480.0,119470.0,0.04862]
[1752704542543,1.0897427,119480.0,119470.0,0.05352]
[1752704545460,1.0897427,119480.0,119470.0,0.07174]
[1752704545754,1.08119311,119480.0,119470.0,0.08684]
[1752704546151,1.08974496,119480.0,119470.0,0.08684]
[1752704549653,1.08974496,119480.0,119470.0,0.05592]
[1752704551155,1.08974496,119480.0,119470.0,0.001]
[1752704551857,1.08974496,119480.0,119470.0,0.04862]
[1752704552061,1.08974496,119480.0,119470.0,0.05352]
[1752704552254,1.08974496,119480.0,119470.0,0.001]
[1752704556168,0.50094496,119480.0,119470.0,0.001]
[1752704556360,1.09010496,119480.0,119470.0,0.001]
[1752704556659,0.1673144,119470.0,119460.0,0.05189]
[1752704556865,0.49240721,119470.0,119460.0,0.05189]
[1752704557660,1.08188721,119470.0,119460.0,0.05189]
[1752704557855,1.08388721,119470.0,119460.0,0.05189]
[1752704558159,1.08388721,119470.0,119460.0,0.05434]
[1752704558354,1.08388721,119470.0,119460.0,0.06969]
[1752704558866,1.14947429,119470.0,119460.0,0.06969]
[1752704559063,1.10200334,119470.0,119460.0,0.06969]
[1752704559369,1.03617626,119470.0,119460.0,0.06969]
[1752704560162,1.03605626,119470.0,119460.0,0.08583]
[1752704564369,1.10168309,119470.0,119460.0,0.08583]
[1752704567687,0.82406123,119470.0,119460.0,0.08583]
[1752704567985,1.10168309,119470.0,119460.0,0.08583]
[1752704568379,1.10168309,119470.0,119460.0,0.06969]
[1752704570282,1.10168309,119470.0,119460.0,0.0471]
[1752704571081,1.10168309,119470.0,119460.0,0.05189]
[1752704574388,1.10168309,119470.0,119460.0,0.0471]
[1752704574782,1.10168309,119470.0,119460.0,0.05189]
[1752704576882,0.1673286,119460.0,119450.0,0.11192853]
[1752704577088,0.46211137,119460.0,119450.0,0.06003853]
[1752704578388,0.1673426,119450.0,119440.0,0.11192853]
[1752704578595,1.03464446,119450.0,119440.0,0.11192853]
[1752704579288,1.03464446,119450.0,119440.0,0.14341853]
[1752704579687,1.03464446,119450.0,119440.0,0.08538]
[1752704580088,1.03464446,119450.0,119440.0,0.05389]
[1752704581488,1.03464446,119450.0,119440.0,0.11412674]
[1752704581690,1.03464446,119450.0,119440.0,0.05389]
[1752704582594,1.03464446,119450.0,119440.0,0.08783]
[1752704585893,1.03464446,119450.0,119440.0,0.07169]
[1752704586200,1.03464446,119450.0,119440.0,0.05389]
[1752704588200,1.03464446,119450.0,119440.0,0.08592]
[1752704588494,1.03464446,119450.0,119440.0,0.0883]
[1752704597399,0.26817071,119460.0,119450.0,0.08659]
[1752704597606,0.85569071,119460.0,119450.0,0.42438887]
[1752704597901,1.13331257,119460.0,119450.0,0.08659]
[1752704598091,1.13331257,119460.0,119450.0,0.1307154]
[1752704598999,1.13331257,119460.0,119450.0,0.05218]
[1752704599208,1.13331257,119460.0,119450.0,0.04752]
[1752704599905,1.13331257,119460.0,119450.0,0.05218]
[1752704600105,0.54579257,119460.0,119450.0,0.08659]
[1752704600505,1.13391257,119460.0,119450.0,0.08659]
[1752704601004,0.01716091,119460.0,119450.0,0.3141079]
[1752704601202,0.01716091,119460.0,119450.0,0.59172976]
[1752704601397,0.77240941,119460.0,119450.0,0.42438726]
[1752704601602,0.77240941,119460.0,119450.0,0.1467654]
[1752704602498,1.05003127,119460.0,119450.0,0.1467654]
[1752704602906,1.05003127,119460.0,119450.0,0.11236797]
[1752704603608,1.05003127,119460.0,119450.0,0.1077133]
[1752704603810,1.05003127,119460.0,119450.0,0.0601933]
[1752704606015,0.1673424,119450.0,119440.0,0.1123733]
[1752704606206,0.44496426,119450.0,119440.0,0.1123733]
[1752704606804,0.44496426,119450.0,119440.0,0.05218]
[1752704607410,0.44496426,119450.0,119440.0,0.08659]
[1752704608207,0.44496426,119450.0,119440.0,0.08859]
[1752704613715,0.44496426,119450.0,119440.0,0.07254]
[1752704617922,0.44496426,119450.0,119440.0,0.05418]
[1752704618113,0.44496426,119450.0,119440.0,0.04952]
[1752704618421,0.44496426,119450.0,119440.0,0.05413]
[1752704618622,0.1673424,119450.0,119440.0,0.05413]
[1752704618822,0.44496426,119450.0,119440.0,0.05413]
[1752704628028,0.7546624,119450.0,119440.0,0.1480033]
[1752704630217,1.03228426,119450.0,119440.0,0.1480033]
[1752704631527,1.70363067,119460.0,119450.0,0.08621]
[1752704631725,1.42600881,119460.0,119450.0,0.14642072]
[1752704631924,2.01332881,119460.0,119450.0,0.08621]
[1752704632724,2.01332881,119460.0,119450.0,0.14642571]
[1752704633924,0.18448931,119460.0,119450.0,0.94859826]
[1752704634224,0.60444091,119460.0,119450.0,0.94859826]
[1752704634423,0.18448931,119460.0,119450.0,0.94859826]
[1752704635928,0.7545943,119470.0,119460.0,0.2535384]
[1752704636129,0.7545943,119470.0,119460.0,0.60638404]
[1752704636314,0.7545943,119470.0,119460.0,0.63657457]
[1752704636824,0.7545943,119470.0,119460.0,0.53116026]
[1752704637323,0.7545943,119470.0,119460.0,0.60633308]
[1752704637526,0.7545943,119470.0,119460.0,0.53116026]
[1752704637824,0.7565943,119470.0,119460.0,0.15240794]
[1752704638025,1.03421616,119470.0,119460.0,0.14631791]
[1752704639427,1.03421616,119470.0,119460.0,0.10802791]
[1752704639630,1.03421616,119470.0,119460.0,0.11263791]
[1752704640629,1.03421616,119470.0,119460.0,0.06010791]
[1752704640830,1.03421616,119470.0,119460.0,0.04792]
[1752704641224,0.1673284,119460.0,119450.0,0.14631791]
[1752704641424,0.44495026,119460.0,119450.0,0.14631791]
[1752704642327,0.45450971,119460.0,119450.0,0.14631791]
[1752704642531,0.1683284,119460.0,119450.0,0.31366031]
[1752704642731,0.44595026,119460.0,119450.0,0.31366031]
[1752704643627,0.001,119460.0,119450.0,0.31366031]
[1752704643920,0.27862186,119460.0,119450.0,0.31366031]
[1752704644125,0.44595026,119460.0,119450.0,0.31366031]
[1752704645031,0.27862186,119460.0,119450.0,0.31366031]
[1752704645226,0.44595026,119460.0,119450.0,0.14631791]
[1752704646026,0.44595026,119460.0,119450.0,0.31366031]
[1752704646027,0.27862186,119460.0,119450.0,0.31366031]
[1752704646233,0.001,119460.0,119450.0,0.53117426]
[1752704646431,0.001,119460.0,119450.0,0.60634708]
[1752704646622,0.001,119460.0,119450.0,0.53117426]
[1752704646824,0.1683284,119460.0,119450.0,0.08621]
[1752704647233,0.1683284,119460.0,119450.0,0.2535524]
[1752704647639,0.1683284,119460.0,119450.0,0.08621]
[1752704648336,0.1683284,119460.0,119450.0,0.31362329]
[1752704649627,0.1683284,119460.0,119450.0,0.14628089]
[1752704650333,0.1683284,119460.0,119450.0,0.31362329]
[1752704652135,0.1683284,119460.0,119450.0,0.14628089]
[1752704652336,0.44595026,119460.0,119450.0,0.14628089]
[1752704653132,0.44595026,119460.0,119450.0,0.31362329]
[1752704653637,0.44595026,119460.0,119450.0,0.14628089]
[1752704654139,0.44595026,119460.0,119450.0,0.2535524]
[1752704654838,0.44595026,119460.0,119450.0,0.31365124]
[1752704655538,0.44595026,119460.0,119450.0,0.14630884]
[1752704656239,0.44595026,119460.0,119450.0,0.11264377]
[1752704657434,0.1673424,119450.0,119440.0,0.07027]
[1752704657640,1.03196426,119450.0,119440.0,0.07027]
[1752704657834,1.03196426,119450.0,119440.0,0.14536081]
[1752704658235,1.03196426,119450.0,119440.0,0.07027]
[1752704658434,1.03196426,119450.0,119440.0,0.08819]
[1752704658636,1.03196426,119450.0,119440.0,0.14834923]
[1752704658940,1.03196426,119450.0,119440.0,0.14934923]
[1752704659342,1.03196426,119450.0,119440.0,0.08919]
[1752704659836,1.09857346,119450.0,119440.0,0.08919]
[1752704660041,0.8209516,119450.0,119440.0,0.08919]
[1752704660239,1.09857346,119450.0,119440.0,0.08919]
[1752704661543,1.09857346,119450.0,119440.0,0.08528]
[1752704662445,1.09857346,119450.0,119440.0,0.06968]
[1752704662743,1.09857346,119450.0,119440.0,0.11164598]
[1752704666348,1.09857346,119450.0,119440.0,0.06117598]
[1752704666541,1.09857346,119450.0,119440.0,0.10687598]
[1752704666747,1.09857346,119450.0,119440.0,0.11164598]
[1752704666939,0.1673424,119450.0,119440.0,0.16416573]
[1752704667139,0.7543824,119450.0,119440.0,0.45670242]
[1752704667339,0.7543824,119450.0,119440.0,0.17908056]
[1752704667539,0.7543824,119450.0,119440.0,0.45670242]
[1752704667741,0.7543824,119450.0,119440.0,0.23923307]
[1752704667941,0.7543824,119450.0,119440.0,0.16414226]
[1752704669451,0.7543824,119450.0,119440.0,0.60912042]
[1752704669649,0.1673424,119450.0,119440.0,0.60912042]
[1752704669847,0.2928432,119460.0,119450.0,0.1673422]
[1752704670151,0.587,119460.0,119450.0,0.63123137]
[1752704670450,0.7543282,119460.0,119450.0,0.63123137]
[1752704672259,0.7553282,119460.0,119450.0,0.63123137]
[1752704674245,0.7553282,119460.0,119450.0,0.57107886]
[1752704674444,0.7553282,119460.0,119450.0,0.63123137]
[1752704675847,0.1683282,119460.0,119450.0,0.63123137]
[1752704676050,0.58792,119460.0,119450.0,0.63123137]
[1752704676251,0.58792,119460.0,119450.0,0.57107886]
[1752704676450,0.001,119460.0,119450.0,0.57107886]
[1752704676655,0.8546266,119470.0,119460.0,0.2524582]
[1752704678051,0.8546266,119470.0,119460.0,0.08513]
[1752704678360,1.13224846,119470.0,119460.0,0.14526856]
[1752704678948,1.13224846,119470.0,119460.0,0.31259676]
[1752704679445,1.13224846,119470.0,119460.0,0.14526856]
[1752704679645,1.13224846,119470.0,119460.0,0.08513]
[1752704679858,1.13424846,119470.0,119460.0,0.08513]
[1752704680249,1.13424846,119470.0,119460.0,0.14526754]